bitfinex/quotes_SOLUSD_20230904
["timestamp","ask_amount","ask_price","bid_price","bid_amount"]
[1693848372347,33.908,19.464,19.452,3.38431188]
[1693848376760,138.03817752,19.469,19.452,2.405]
[1693848376953,8.014,19.465,19.453,1.5]
[1693848377150,33.906,19.465,19.455,2.405]
[1693848377449,33.906,19.465,19.454,2.405]
[1693848381857,8.014,19.465,19.454,2.405]
[1693848382368,119.8361,19.469,19.454,2.405]
[1693848382674,8.013,19.467,19.454,2.405]
[1693848382970,8.014,19.466,19.454,2.405]
[1693848383349,8.013,19.467,19.454,2.405]
[1693848389166,8.013,19.469,19.455,0.66479687]
[1693848389359,41.982,19.47,19.459,10.175]
[1693848389569,41.982,19.47,19.46,55.0]
[1693848389760,41.982,19.47,19.461,2.91570599]
[1693848389974,41.982,19.47,19.461,2.404]
[1693848394776,33.97,19.47,19.462,0.96688109]
[1693848394981,33.97,19.47,19.464,2.404]
[1693848396081,92.0947,19.472,19.464,2.404]
[1693848397081,33.97,19.47,19.464,2.404]
[1693848397281,41.982,19.47,19.463,57.404]
[1693848397579,41.982,19.47,19.464,55.0]
[1693848397779,41.982,19.47,19.463,2.404]
[1693848398580,41.982,19.47,19.462,57.404]
[1693848398883,33.97,19.47,19.462,57.404]
[1693848399968,33.97,19.47,19.462,65.172]
[1693848400385,41.982,19.47,19.462,65.172]
[1693848401484,33.97,19.47,19.462,65.172]
[1693848402174,41.982,19.47,19.462,65.172]
[1693848402987,41.982,19.47,19.462,57.404]
[1693848403185,41.982,19.47,19.462,2.404]
[1693848404976,92.0947,19.472,19.462,19.36]
[1693848405171,92.0947,19.472,19.463,55.55669462]
[1693848405376,92.0947,19.472,19.465,2.404]
[1693848405571,8.01,19.474,19.465,57.404]
[1693848409776,33.97,19.47,19.457,62.769]
[1693848409981,90.411,19.467,19.458,21.5]
[1693848410386,90.411,19.467,19.452,7.772]
[1693848410695,33.97,19.46,19.455,33.97]
[1693848410989,33.97,19.46,19.455,2.405]
[1693848411183,97.6736,19.469,19.455,2.405]
[1693848411184,8.016,19.461,19.455,2.405]
[1693848411488,8.015,19.462,19.455,2.405]
[1693848412075,8.015,19.462,19.453,7.772]
[1693848412282,8.015,19.462,19.454,57.405]
[1693848413091,8.015,19.463,19.456,2.405]
[1693848413995,64.532,19.463,19.453,55.0]
[1693848414176,33.97,19.46,19.443,48.36387255]
[1693848414379,8.018,19.455,19.446,2.406]
[1693848414580,8.018,19.455,19.447,1.5]
[1693848415085,8.018,19.455,19.445,1.5]
[1693848415492,8.018,19.455,19.447,1.5]
[1693848415694,8.018,19.455,19.447,21.5]
[1693848416101,8.018,19.455,19.447,23.906]
[1693848416291,8.018,19.455,19.448,55.0]
[1693848416490,8.018,19.455,19.449,21.5]
[1693848416793,8.018,19.455,19.449,1.5]
[1693848416998,8.018,19.455,19.444,21.5]
[1693848417298,8.018,19.455,19.444,23.906]
[1693848418189,8.018,19.455,19.446,3.906]
[1693848418388,8.018,19.455,19.446,23.906]
[1693848418884,8.018,19.455,19.446,3.906]
[1693848419894,8.018,19.455,19.446,23.906]
[1693848420102,8.018,19.455,19.447,55.0]
[1693848420297,8.018,19.455,19.448,21.5]
[1693848420484,8.018,19.455,19.448,20.0]
[1693848420686,8.018,19.455,19.449,1.40132442]
[1693848420998,8.018,19.455,19.448,20.0]
[1693848421185,8.018,19.455,19.449,0.60486194]
[1693848421597,8.018,19.455,19.447,2.406]
[1693848422103,8.018,19.455,19.445,1.01351293]
[1693848422299,8.018,19.455,19.437,52.03706665]
[1693848422300,8.018,19.455,19.436,16.978]
[1693848422493,33.97,19.45,19.438,2.407]
[1693848422682,8.022,19.447,19.439,1.5]
[1693848423390,8.022,19.447,19.439,3.907]
[1693848423595,8.022,19.447,19.437,20.0]
[1693848423789,8.022,19.447,19.433,7.78]
[1693848423988,8.022,19.447,19.434,20.0]
[1693848424620,8.022,19.447,19.436,2.407]
[1693848425803,8.022,19.447,19.435,2.407]
[1693848426299,33.97,19.44,19.432,2.408]
[1693848427404,41.994,19.44,19.432,2.408]
[1693848428112,8.024,19.44,19.432,2.408]
[1693848431613,68.009,19.44,19.43,2.408]
[1693848431911,68.009,19.44,19.429,2.408]
[1693848432614,8.024,19.441,19.429,2.408]
[1693848432813,8.024,19.441,19.429,22.408]
[1693848434914,8.024,19.441,19.43,55.0]
[1693848435100,8.024,19.441,19.433,2.408]
[1693848435305,8.024,19.441,19.431,2.408]
[1693848436722,8.024,19.441,19.424,80.75781734]
[1693848436913,64.605,19.441,19.428,2.408]
[1693848438525,64.605,19.441,19.428,57.408]
[1693848438723,64.605,19.441,19.429,20.0]
[1693848438910,64.605,19.441,19.429,22.408]
[1693848441625,34.06,19.44,19.429,22.408]
[1693848441815,8.026,19.437,19.429,22.408]
[1693848445109,34.06,19.44,19.429,22.408]
[1693848445523,42.084,19.44,19.429,22.408]
[1693848446228,42.084,19.44,19.429,20.0]
[1693848446529,42.084,19.44,19.429,22.408]
[1693848453021,42.094,19.44,19.429,22.408]
[1693848453720,42.094,19.44,19.429,30.19]
[1693848454935,42.094,19.44,19.43,55.0]
[1693848455125,42.094,19.44,19.431,2.408]
[1693848455514,34.07,19.44,19.431,2.408]
[1693848455928,42.094,19.44,19.431,2.408]
[1693848465926,34.07,19.44,19.431,2.408]
[1693848466144,41.61316871,19.443,19.431,2.408]
[1693848466441,116.3969,19.446,19.431,2.408]
[1693848466938,2.49999999,19.445,19.431,2.408]
[1693848467640,8.023,19.443,19.431,2.408]
[1693848467840,34.07,19.44,19.431,2.408]
[1693848468041,8.025,19.439,19.431,2.408]
[1693848468240,42.094,19.44,19.431,2.408]
[1693848468942,68.019,19.44,19.43,55.0]
[1693848470338,68.019,19.44,19.43,57.408]
[1693848474441,68.019,19.44,19.43,55.0]
[1693848476151,68.019,19.44,19.42,25.75781734]
[1693848476347,22.49999999,19.439,19.417,434.61334728]
[1693848476647,33.962,19.433,19.423,2.409]
[1693848479538,8.027,19.433,19.423,2.409]
[1693848484855,8.027,19.433,19.423,57.409]
[1693848485954,25.93,19.437,19.423,57.409]
[1693848486551,8.027,19.433,19.423,57.409]
[1693848486851,56.588,19.439,19.423,57.409]
[1693848486852,42.06278949,19.437,19.424,20.0]
[1693848487057,94.8212,19.444,19.427,57.904]
[1693848487244,8.024,19.441,19.427,57.904]
[1693848487557,42.094,19.44,19.428,75.0]
[1693848487762,42.094,19.44,19.431,2.408]
[1693848488951,42.094,19.44,19.43,55.0]
[1693848489138,2.49838783,19.439,19.43,55.0]
[1693848489456,8.026,19.437,19.43,55.0]
[1693848492840,8.026,19.437,19.43,2.408]
[1693848493253,34.07,19.44,19.43,2.408]
[1693848493439,2.48671297,19.439,19.43,2.408]
[1693848493645,42.095,19.44,19.43,2.408]
[1693848493858,8.025,19.439,19.43,2.408]
[1693848494160,8.025,19.439,19.43,57.408]
[1693848494839,8.025,19.439,19.43,2.408]
[1693848495043,8.025,19.439,19.433,2.408]
[1693848495660,8.025,19.439,19.431,2.408]
[1693848496359,33.952,19.439,19.431,2.408]
[1693848496548,33.952,19.439,19.429,57.408]
[1693848496855,33.952,19.439,19.429,2.408]
[1693848497061,33.952,19.439,19.429,22.408]
[1693848497448,33.952,19.439,19.429,20.0]
[1693848497651,33.952,19.439,19.428,2.408]
[1693848498347,20.0,19.438,19.417,15.18219248]
[1693848498552,34.07,19.43,19.422,2.409]
[1693848498752,8.029,19.428,19.422,2.409]
[1693848499061,8.029,19.429,19.422,2.409]
[1693848500363,8.029,19.429,19.421,2.409]
[1693848500770,8.029,19.429,19.415,7.787]
[1693848501066,8.029,19.429,19.419,2.409]
[1693848501969,8.029,19.429,19.419,22.409]
[1693848502757,56.596,19.436,19.419,22.409]
[1693848502956,8.029,19.429,19.419,22.409]
[1693848503359,8.027,19.433,19.419,22.409]
[1693848503558,99.0752,19.437,19.419,53.152]
[1693848503760,8.026,19.435,19.419,53.152]
[1693848506367,8.026,19.435,19.419,22.409]
[1693848506759,34.07,19.43,19.419,22.409]
[1693848506958,8.03,19.427,19.419,22.409]
[1693848507763,8.03,19.427,19.419,20.0]
[1693848508160,8.03,19.427,19.416,20.0]
[1693848508558,8.03,19.427,19.419,2.409]
[1693848510375,8.03,19.427,19.418,2.41]
[1693848510764,8.03,19.427,19.416,20.0]
[1693848510962,8.03,19.427,19.415,20.0]
[1693848511266,8.03,19.427,19.418,2.41]
[1693848521274,8.03,19.427,19.417,2.41]
[1693848522371,8.03,19.427,19.416,2.41]
[1693848523861,8.03,19.427,19.415,2.41]
[1693848534875,8.03,19.427,19.415,57.41]
[1693848535473,8.03,19.427,19.413,2.41]
[1693848536493,8.03,19.427,19.409,15.78321318]
[1693848536875,8.03,19.427,19.41,55.0]
[1693848537703,8.03,19.427,19.412,2.41]
[1693848537990,0.49999999,19.426,19.412,1.91]
[1693848538175,8.032,19.422,19.412,1.91]
[1693848540493,8.032,19.422,19.412,56.91]
[1693848549986,8.031,19.424,19.412,56.91]
[1693848553289,127.239,19.43,19.412,56.91]
[1693848553490,0.49999999,19.429,19.412,113.00595554]
[1693848553691,135.268,19.43,19.413,20.0]
[1693848553897,42.099,19.43,19.418,27.19]
[1693848554083,42.099,19.43,19.419,55.0]
[1693848554289,42.099,19.43,19.42,2.409]
[1693848558598,42.099,19.43,19.419,57.41]
[1693848558798,42.099,19.43,19.419,2.41]
[1693848559009,0.49999999,19.429,19.419,22.41]
[1693848559213,8.03,19.426,19.42,55.0]
[1693848559407,8.03,19.426,19.42,57.409]
[1693848560406,8.03,19.426,19.42,55.0]
[1693848561595,8.03,19.426,19.42,57.409]
[1693848561805,8.03,19.426,19.42,55.0]
[1693848566898,8.03,19.426,19.419,2.409]
[1693848567093,8.03,19.426,19.417,2.41]
[1693848567313,8.03,19.426,19.417,57.41]
[1693848568914,8.03,19.426,19.417,2.41]
[1693848570212,8.03,19.426,19.412,7.788]
[1693848570407,0.49999999,19.425,19.414,2.41]
[1693848570713,34.07,19.42,19.413,2.41]
[1693848571013,42.103,19.42,19.413,2.41]
[1693848571405,34.07,19.42,19.413,2.41]
[1693848571810,34.07,19.42,19.413,57.41]
[1693848572813,8.032,19.422,19.413,57.41]
[1693848584805,40.77445931,19.427,19.413,74.408]
[1693848585010,0.49999999,19.426,19.413,74.408]
[1693848585211,8.52999999,19.427,19.413,74.408]
[1693848585708,8.03,19.427,19.413,74.408]
[1693848586618,0.49999999,19.433,19.42,34.07]
[1693848586813,8.026,19.435,19.423,27.182]
[1693848586814,0.49999999,19.434,19.423,27.182]
[1693848587125,8.52699999,19.434,19.423,27.182]
[1693848589220,0.49999999,19.434,19.423,27.182]
[1693848589815,28.52499999,19.438,19.423,27.182]
[1693848590225,0.49999999,19.438,19.423,27.182]
[1693848590412,2.83329608,19.439,19.428,27.175]
[1693848590612,42.095,19.44,19.432,10.188]
[1693848590921,42.095,19.44,19.432,2.408]
[1693848591116,42.095,19.44,19.425,16.988]
[1693848591311,2.6468101,19.439,19.429,2.408]
[1693848591514,8.026,19.437,19.429,2.408]
[1693848591709,8.025,19.439,19.429,22.408]
[1693848592226,34.07,19.44,19.429,22.408]
[1693848592424,8.023,19.443,19.429,22.408]
[1693848592617,8.024,19.442,19.429,22.408]
[1693848593223,2.67498376,19.441,19.429,22.408]
[1693848593412,8.024,19.44,19.429,22.408]
[1693848593928,42.094,19.44,19.429,22.408]
[1693848594114,2.89602994,19.439,19.429,22.408]
[1693848594516,8.025,19.438,19.429,22.408]
[1693848594910,8.025,19.438,19.43,55.0]
[1693848595108,8.025,19.438,19.431,2.408]
[1693848596530,42.094,19.44,19.431,10.189]
[1693848596728,42.094,19.44,19.434,2.408]
[1693848598327,8.024,19.442,19.434,2.408]
[1693848598527,2.99999999,19.441,19.434,57.408]
[1693848598733,2.99999999,19.442,19.434,57.408]
[1693848599231,11.02399999,19.442,19.434,57.408]
[1693848600523,11.02399999,19.442,19.434,55.0]
[1693848601019,11.02399999,19.442,19.434,57.408]
[1693848601423,11.02399999,19.442,19.434,2.408]
[1693848604320,11.02399999,19.442,19.433,55.0]
[1693848604523,34.07,19.44,19.431,2.408]
[1693848604722,11.02499999,19.439,19.431,2.408]
[1693848604925,8.025,19.439,19.431,2.408]
[1693848605236,0.49999999,19.438,19.429,22.408]
[1693848605425,8.026,19.436,19.429,2.408]
[1693848605624,8.026,19.436,19.429,10.19]
[1693848606042,8.026,19.437,19.429,10.19]
[1693848608540,8.026,19.437,19.429,2.408]
[1693848608845,8.026,19.437,19.422,30.738]
[1693848608846,136.337,19.437,19.42,41.855]
[1693848609027,2.99999999,19.436,19.422,2.409]
[1693848609338,2.99999999,19.431,19.422,2.409]
[1693848609538,8.029,19.429,19.422,2.409]
[1693848610035,8.028,19.43,19.422,57.409]
[1693848613026,8.028,19.431,19.422,57.409]
[1693848613748,0.49999999,19.433,19.422,57.409]
[1693848615243,0.49999999,19.435,19.422,57.409]
[1693848616237,8.52599999,19.435,19.422,57.409]
[1693848616431,8.026,19.435,19.422,57.409]
[1693848617429,8.026,19.436,19.422,57.409]
[1693848617642,0.49999999,19.435,19.422,57.409]
[1693848619134,8.52599999,19.435,19.422,57.409]
[1693848642758,8.026,19.435,19.422,57.409]
[1693848642954,0.49999999,19.434,19.422,57.409]
[1693848643156,8.52699999,19.434,19.422,57.409]
[1693848643357,8.027,19.434,19.422,57.409]
[1693848649868,0.49999999,19.433,19.422,57.409]
[1693848650072,8.028,19.43,19.422,57.409]
[1693848655669,8.028,19.432,19.422,57.409]
[1693848656170,25.933,19.435,19.422,57.409]
[1693848656379,8.025,19.437,19.422,57.409]
[1693848656562,2.99999999,19.436,19.422,57.409]
[1693848656764,8.027,19.434,19.422,57.409]
[1693848657163,0.49999999,19.433,19.422,57.409]
[1693848657383,8.028,19.431,19.422,57.409]
[1693848660089,56.6,19.435,19.422,57.409]
[1693848660090,8.028,19.432,19.422,57.409]
[1693848660493,25.932,19.435,19.422,57.409]
[1693848660800,8.027,19.433,19.422,57.409]
[1693848661385,33.962,19.433,19.422,57.409]
[1693848667296,8.027,19.433,19.422,57.409]
[1693848672106,33.962,19.433,19.422,57.409]
[1693848673093,34.07,19.43,19.416,74.404]
[1693848673293,8.03,19.426,19.42,2.409]
[1693848673798,8.029,19.428,19.42,2.409]
[1693848674308,8.029,19.429,19.42,2.409]
[1693848674516,8.029,19.429,19.42,57.409]
[1693848679611,8.029,19.429,19.42,2.409]
[1693848680309,8.029,19.428,19.42,2.409]
[1693848689512,8.029,19.428,19.42,57.409]
[1693848689709,8.029,19.428,19.42,2.409]
[1693848689922,8.029,19.428,19.413,30.752]
[1693848689923,55.49999999,19.427,19.409,54.45397774]
[1693848690109,34.07,19.42,19.409,7.789]
[1693848690307,8.034,19.417,19.41,2.411]
[1693848691520,8.034,19.417,19.41,57.411]
[1693848691721,8.034,19.417,19.41,2.411]
[1693848692029,8.034,19.417,19.409,2.411]
[1693848693817,8.034,19.417,19.409,22.411]
[1693848694023,8.034,19.417,19.41,55.0]
[1693848695519,8.034,19.417,19.41,57.411]
[1693848695723,8.034,19.417,19.41,55.0]
[1693848695923,8.034,19.417,19.409,20.0]
[1693848696229,0.49999999,19.416,19.407,2.411]
[1693848696435,8.035,19.414,19.407,2.411]
[1693848697225,8.035,19.414,19.407,57.411]
[1693848697426,8.035,19.414,19.408,20.0]
[1693848697736,8.035,19.414,19.409,2.411]
[1693848697925,8.035,19.415,19.409,2.411]
[1693848698623,8.035,19.415,19.408,22.411]
[1693848700233,8.035,19.415,19.408,2.411]
[1693848700434,8.035,19.415,19.407,57.411]
[1693848700635,8.035,19.415,19.408,20.0]
[1693848701139,8.035,19.415,19.408,22.411]
[1693848703336,8.035,19.415,19.408,2.411]
[1693848704122,8.035,19.415,19.407,2.411]
[1693848705233,25.955,19.418,19.407,2.411]
[1693848705423,8.034,19.416,19.407,57.411]
[1693848705623,34.07,19.42,19.407,88.173]
[1693848705823,92.7169,19.428,19.413,27.196]
[1693848706053,92.7169,19.428,19.414,55.0]
[1693848706244,8.03,19.426,19.418,10.196]
[1693848706552,8.03,19.426,19.421,2.409]
[1693848707137,0.49999999,19.426,19.421,2.409]
[1693848710258,8.52999999,19.426,19.421,2.409]
[1693848710451,8.03,19.426,19.421,2.409]
[1693848710942,0.49999999,19.428,19.421,2.409]
[1693848711258,0.49999999,19.429,19.421,2.409]
[1693848711454,8.029,19.429,19.421,2.409]
[1693848711754,34.07,19.43,19.421,2.409]
[1693848711755,0.49999999,19.428,19.421,2.409]
[1693848712062,0.49999999,19.429,19.421,57.409]
[1693848712556,8.029,19.428,19.421,57.409]
[1693848712753,0.49999999,19.427,19.421,57.409]
[1693848712958,0.49999999,19.428,19.421,57.409]
[1693848713852,8.03,19.427,19.421,57.409]
[1693848714760,8.029,19.428,19.421,57.409]
[1693848714963,0.49999999,19.427,19.421,2.409]
[1693848715260,8.52899999,19.429,19.421,2.409]
[1693848716254,34.46899999,19.429,19.421,2.409]
[1693848717751,8.52899999,19.429,19.421,2.409]
[1693848718157,89.22983555,19.429,19.41,34.07]
[1693848718357,44.08483556,19.428,19.408,20.0]
[1693848718556,44.08483556,19.428,19.413,2.41]
[1693848718763,33.978,19.424,19.413,2.41]
[1693848718966,0.49999999,19.423,19.413,2.41]
[1693848719263,8.032,19.421,19.413,2.41]
[1693848719562,0.49999999,19.421,19.413,2.41]
[1693848720458,8.032,19.421,19.413,2.41]
[1693848721158,8.53099999,19.423,19.413,2.41]
[1693848721347,8.031,19.423,19.413,2.41]
[1693848722567,0.49999999,19.422,19.413,2.41]
[1693848723564,8.53199999,19.422,19.413,2.41]
[1693848723764,8.032,19.422,19.413,2.41]
[1693848723953,0.49999999,19.421,19.413,2.41]
[1693848724154,8.53199999,19.421,19.413,2.41]
[1693848724455,8.032,19.421,19.412,57.41]
[1693848724650,8.032,19.421,19.412,2.41]
[1693848725254,8.032,19.421,19.411,55.0]
[1693848725455,0.49999999,19.42,19.411,55.0]
[1693848725766,8.034,19.418,19.411,55.0]
[1693848726148,8.034,19.418,19.409,2.411]
[1693848727776,8.034,19.418,19.409,22.411]
[1693848728065,8.034,19.418,19.41,57.411]
[1693848731366,8.034,19.418,19.41,55.0]
[1693848735266,8.034,19.418,19.41,57.411]
[1693848735969,8.034,19.418,19.41,55.0]
[1693848737867,8.034,19.418,19.41,57.411]
[1693848738178,8.033,19.419,19.41,57.411]
[1693848738365,8.033,19.419,19.41,2.411]
[1693848738675,8.033,19.419,19.41,57.411]
[1693848738860,8.033,19.419,19.41,2.411]
[1693848739060,2.78065722,19.418,19.41,2.411]
[1693848739263,8.034,19.416,19.41,2.411]
[1693848739462,8.034,19.416,19.409,2.411]
[1693848740261,8.034,19.416,19.408,2.411]
[1693848740663,2.80203837,19.415,19.407,2.411]
[1693848740980,8.035,19.414,19.407,2.411]
[1693848744863,8.035,19.414,19.406,57.411]
[1693848745058,8.035,19.414,19.406,2.411]
[1693848745265,33.995,19.414,19.39,34.07]
[1693848745463,2.80203837,19.413,19.405,2.411]
[1693848745775,2.80203837,19.419,19.405,2.411]
[1693848745974,2.80203837,19.419,19.405,22.411]
[1693848746277,8.031,19.423,19.405,22.411]
[1693848746478,0.49999999,19.422,19.405,22.411]
[1693848746663,8.53199999,19.422,19.406,55.0]
[1693848746868,8.53199999,19.422,19.41,2.411]
[1693848747074,8.032,19.422,19.41,2.411]
[1693848748276,40.89438432,19.424,19.41,36.481]
[1693848748475,0.49999999,19.423,19.411,55.0]
[1693848748783,8.53099999,19.423,19.414,2.41]
[1693848749174,8.53099999,19.423,19.413,57.41]
[1693848749883,0.49999999,19.423,19.413,57.41]
[1693848750177,0.49999999,19.427,19.413,2.41]
[1693848750379,8.52999999,19.427,19.413,19.408]
[1693848750577,8.52999999,19.427,19.417,2.41]
[1693848750968,8.52999999,19.427,19.414,62.787]
[1693848752679,8.52999999,19.427,19.416,2.41]
[1693848756581,8.52999999,19.427,19.416,57.41]
[1693848759974,8.52999999,19.427,19.416,55.0]
[1693848763384,32.61483555,19.427,19.409,2.411]
[1693848763583,33.983,19.421,19.409,22.411]
[1693848763783,0.49999999,19.42,19.409,22.411]
[1693848764089,8.53299999,19.42,19.409,22.411]
[1693848764386,8.53299999,19.42,19.409,2.411]
[1693848764573,8.53299999,19.42,19.409,57.411]
[1693848766074,8.033,19.42,19.409,57.411]
[1693848766275,0.49999999,19.419,19.409,57.411]
[1693848766476,8.53299999,19.419,19.409,57.411]
[1693848766678,8.033,19.419,19.409,57.411]
[1693848767782,8.032,19.422,19.412,2.41]
[1693848768190,0.49999999,19.421,19.412,2.41]
[1693848768579,8.53199999,19.421,19.412,2.41]
[1693848771677,8.032,19.421,19.412,2.41]
[1693848772081,0.49999999,19.42,19.411,55.0]
[1693848772391,8.033,19.419,19.411,55.0]
[1693848775694,25.95,19.422,19.411,57.411]
[1693848775897,8.033,19.42,19.411,57.411]
[1693848776079,0.49999999,19.419,19.411,57.411]
[1693848776988,8.53299999,19.419,19.411,57.411]
[1693848777188,8.033,19.419,19.411,57.411]
[1693848777894,8.033,19.419,19.411,55.0]
[1693848778900,8.033,19.419,19.411,57.411]
[1693848779406,25.95,19.422,19.411,57.411]
[1693848779591,8.033,19.42,19.411,57.411]
[1693848779888,0.49999999,19.419,19.411,57.411]
[1693848780090,8.53299999,19.419,19.411,57.411]
[1693848780290,8.033,19.419,19.411,57.411]
[1693848781099,25.95,19.422,19.411,57.411]
[1693848781301,8.033,19.42,19.411,57.411]
[1693848783300,8.033,19.42,19.411,55.0]
[1693848784906,8.033,19.42,19.411,57.41]
[1693848785202,8.033,19.42,19.411,55.0]
[1693848785507,8.032,19.422,19.411,57.41]
[1693848785705,0.49999999,19.421,19.411,2.41]
[1693848785890,8.53199999,19.421,19.411,2.41]
[1693848787391,8.53199999,19.421,19.41,57.411]
[1693848787685,8.53199999,19.421,19.41,2.411]
[1693848794409,0.49999999,19.421,19.41,36.481]
[1693848794596,26.89252883,19.434,19.414,10.198]
[1693848794597,0.49999999,19.427,19.414,10.198]
[1693848794795,8.03,19.427,19.414,10.198]
[1693848795000,0.49999999,19.426,19.415,57.41]
[1693848795206,8.031,19.423,19.415,55.0]
[1693848795710,8.53199999,19.422,19.415,55.0]
[1693848796312,0.49999999,19.422,19.415,55.0]
[1693848796614,8.032,19.422,19.415,55.0]
[1693848796909,0.49999999,19.421,19.415,55.0]
[1693848797216,0.49999999,19.422,19.415,55.0]
[1693848797411,8.53199999,19.422,19.415,55.0]
[1693848798306,8.031,19.424,19.415,55.0]
[1693848798508,0.49999999,19.423,19.415,55.0]
[1693848799609,0.49999999,19.423,19.415,57.41]
[1693848800005,8.53099999,19.423,19.415,55.0]
[1693848800313,65.16399999,19.423,19.41,36.481]
[1693848800516,65.16399999,19.423,19.408,20.0]
[1693848800703,65.16399999,19.423,19.409,2.411]
[1693848801014,8.53099999,19.423,19.409,2.411]
[1693848801909,8.53099999,19.423,19.409,57.411]
[1693848810610,8.53099999,19.423,19.41,34.07]
[1693848810810,0.49999999,19.423,19.413,2.41]
[1693848811011,0.49999999,19.423,19.413,57.41]
[1693848811315,8.53199999,19.423,19.413,57.41]
[1693848811698,0.49999999,19.423,19.413,57.41]
[1693848811899,0.49999999,19.427,19.413,57.41]
[1693848812717,0.49999999,19.423,19.413,57.41]
[1693848812920,8.53099999,19.423,19.413,57.41]
[1693848813109,8.031,19.423,19.413,57.41]
[1693848813303,0.49999999,19.422,19.413,57.41]
[1693848813715,8.53199999,19.422,19.413,57.41]
[1693848813911,8.032,19.422,19.413,57.41]
[1693848814607,0.49999999,19.423,19.413,57.41]
[1693848814834,0.49999999,19.423,19.413,2.41]
[1693848815325,8.53099999,19.423,19.413,2.41]
[1693848828613,8.53099999,19.423,19.411,2.41]
[1693848828814,8.53099999,19.423,19.409,7.79]
[1693848829030,8.53099999,19.423,19.412,2.41]
[1693848830621,8.53099999,19.423,19.412,57.41]
[1693848835530,8.53099999,19.423,19.412,55.0]
[1693848839136,8.53099999,19.423,19.41,2.411]
[1693848840543,99.68639999,19.423,19.41,2.411]
[1693848856749,99.68639999,19.423,19.41,36.481]
[1693848857055,91.65539999,19.423,19.411,55.0]
[1693848857250,99.68639999,19.423,19.413,2.41]
[1693848858354,91.65539999,19.423,19.413,2.41]
[1693848858555,91.65539999,19.423,19.413,57.41]
[1693848859454,99.68639999,19.423,19.413,57.41]
[1693848867447,99.68639999,19.423,19.413,2.41]
[1693848867654,99.68639999,19.423,19.408,27.79]
[1693848869065,99.68639999,19.423,19.409,55.0]
[1693848869362,99.68639999,19.423,19.41,2.411]
[1693848870446,123.77123555,19.423,19.409,57.411]